bitfinex/quotes_BTCUSD_20241120
["timestamp","ask_amount","ask_price","bid_price","bid_amount"]
[1732098486541,0.05210579,93371.0,93368.0,0.096392]
[1732098486783,0.06547498,93371.0,93369.0,0.085681]
[1732098487025,0.06547719,93370.0,93369.0,0.085681]
[1732098493278,0.06547719,93370.0,93369.0,0.0865367]
[1732098493901,0.06547719,93370.0,93369.0,0.0008557]
[1732098494326,0.06550344,93370.0,93369.0,0.0008557]
[1732098494793,0.17260344,93370.0,93369.0,0.0008557]
[1732098496100,0.17260275,93370.0,93369.0,0.0008557]
[1732098497820,0.17259773,93370.0,93369.0,0.0008557]
[1732098500226,0.1071,93370.0,93369.0,0.0008557]
[1732098500423,0.17258663,93370.0,93369.0,0.0008557]
[1732098503575,0.1071,93370.0,93369.0,0.0008557]
[1732098503775,0.1725826,93370.0,93369.0,0.0008557]
[1732098505334,0.174294,93370.0,93369.0,0.0008557]
[1732098505553,0.1088114,93370.0,93369.0,0.0008557]
[1732098505800,0.17429291,93370.0,93369.0,0.0008557]
[1732098507349,0.28140773,93370.0,93369.0,0.0008557]
[1732098508437,0.21592652,93370.0,93369.0,0.0008557]
[1732098508644,0.28140824,93370.0,93369.0,0.0008557]
[1732098509071,0.32660824,93370.0,93369.0,0.0008557]
[1732098510607,0.29453914,93370.0,93369.0,0.0008557]
[1732098510824,0.3266074,93370.0,93369.0,0.0008557]
[1732098511238,0.107108,93364.0,93360.0,0.2291541]
[1732098511437,0.05211092,93363.0,93360.0,0.2291541]
[1732098511644,0.06548088,93362.0,93361.0,0.085688]
[1732098514634,0.10711512,93366.0,93362.0,0.085687]
[1732098514832,0.02004177,93365.0,93361.0,0.22926277]
[1732098515066,0.06547828,93364.0,93363.0,0.085686]
[1732098521110,0.01336981,93364.0,93363.0,0.085686]
[1732098521350,0.0654856,93364.0,93363.0,0.085686]
[1732098524089,0.0654856,93364.0,93363.0,0.085686]
[1732098533537,0.0654856,93364.0,93363.0,0.22923362]
[1732098534655,0.1088134,93369.0,93363.0,0.22923362]
[1732098534840,0.14053711,93368.0,93365.0,0.085685]
[1732098535123,0.06550546,93367.0,93365.0,0.085685]
[1732098535351,0.06550546,93366.0,93365.0,0.085685]
[1732098537736,0.07085339,93366.0,93365.0,0.085685]
[1732098539874,0.07085339,93366.0,93364.0,0.14354762]
[1732098540053,0.06550546,93365.0,93364.0,0.22923362]
[1732098540284,0.07085339,93365.0,93364.0,0.22923362]
[1732098541404,0.07085445,93365.0,93364.0,0.22951625]
[1732098542020,0.03808162,93365.0,93364.0,0.085686]
[1732098544379,0.21421812,93368.0,93364.0,0.085686]
[1732098544585,0.02005441,93367.0,93363.0,0.0865417]
[1732098544792,0.03208706,93365.0,93364.0,0.085685]
[1732098544996,0.05214147,93365.0,93364.0,0.085685]
[1732098545646,0.05214147,93365.0,93364.0,0.085686]
[1732098547930,0.107107,93364.0,93363.0,0.0008557]
[1732098548360,0.02005446,93364.0,93363.0,0.0008557]
[1732098549598,0.02005446,93364.0,93363.0,0.0865427]
[1732098549947,0.01283382,93364.0,93363.0,0.0865427]
[1732098550157,0.05160454,93364.0,93363.0,0.0008557]
[1732098550488,0.05160454,93364.0,93363.0,0.0865427]
[1732098550683,0.05962551,93364.0,93363.0,0.0865427]
[1732098551343,0.05962477,93364.0,93363.0,0.0865427]
[1732098551501,0.04144327,93364.0,93363.0,0.0008557]
[1732098551704,0.05962477,93364.0,93363.0,0.0008557]
[1732098552210,0.09170817,93364.0,93363.0,0.14458816]
[1732098554131,0.09170817,93364.0,93363.0,0.0008557]
[1732098554606,0.37463029,93364.0,93363.0,0.0008557]
[1732098554791,0.37463029,93364.0,93355.0,0.14373246]
[1732098554792,0.107116,93356.0,93355.0,0.14373246]
[1732098555018,0.19882329,93356.0,93353.0,0.14373246]
[1732098555220,0.107119,93354.0,93353.0,0.14373246]
[1732098555393,0.107119,93354.0,93348.0,0.2395541]
[1732098555394,0.107123,93351.0,93348.0,0.14373246]
[1732098555594,0.09170817,93350.0,93348.0,0.14373246]
[1732098555797,0.09170817,93349.0,93348.0,0.14373246]
[1732098556182,0.19883217,93349.0,93348.0,0.14373246]
[1732098556387,0.19883217,93349.0,93340.0,0.02706936]
[1732098556388,0.41307329,93349.0,93345.0,0.14373246]
[1732098556594,0.41307329,93349.0,93342.0,0.19164328]
[1732098556595,0.19882329,93348.0,93340.0,0.02706936]
[1732098557966,0.19884217,93341.0,93340.0,0.02706936]
[1732098558195,0.21078342,93341.0,93340.0,0.02706936]
[1732098558558,0.23080635,93341.0,93340.0,0.02706936]
[1732098558771,0.33792147,93341.0,93340.0,0.02706936]
[1732098559175,0.107139,93337.0,93333.0,0.085713]
[1732098559399,0.0862877,93336.0,93331.0,0.171431]
[1732098559623,0.0862877,93335.0,93331.0,0.171431]
[1732098559835,0.107147,93330.0,93328.0,0.22233246]
[1732098560007,0.07345416,93329.0,93328.0,0.0786]
[1732098560741,0.07345416,93329.0,93328.0,0.164319]
[1732098561145,0.0654332,93329.0,93328.0,0.0786]
[1732098561353,0.07343247,93329.0,93328.0,0.0786]
[1732098561773,0.07343247,93329.0,93328.0,0.164319]
[1732098562513,0.07343247,93329.0,93328.0,0.085719]
[1732098562936,0.07343247,93329.0,93327.0,0.0017118]
[1732098563142,0.06005889,93328.0,93327.0,0.0874318]
[1732098564108,0.06005889,93328.0,93327.0,0.0873318]
[1732098564307,0.06005889,93328.0,93327.0,0.0016118]
[1732098564753,0.05205962,93328.0,93327.0,0.0016118]
[1732098564967,0.15920762,93328.0,93327.0,0.0016118]
[1732098565449,0.05205962,93328.0,93327.0,0.0016118]
[1732098565909,0.15920762,93328.0,93327.0,0.0016118]
[1732098566552,0.05205962,93328.0,93327.0,0.0016118]
[1732098566994,0.05115962,93328.0,93327.0,0.0016118]
[1732098567394,0.05115962,93328.0,93327.0,0.0873318]
[1732098567607,0.05115962,93328.0,93327.0,0.02374162]
[1732098568946,0.107147,93330.0,93327.0,0.02374162]
[1732098569188,0.10711512,93329.0,93327.0,0.02374162]
[1732098570112,0.01996888,93328.0,93327.0,0.02374162]
[1732098570832,0.01712961,93328.0,93327.0,0.02374162]
[1732098571287,0.10711512,93329.0,93327.0,0.02374162]
[1732098571746,0.10711512,93329.0,93327.0,0.0016118]
[1732098572021,0.25561026,93328.0,93327.0,0.0016118]
[1732098572245,0.3755067,93328.0,93327.0,0.0016118]
[1732098572506,0.38888231,93328.0,93327.0,0.0016118]
[1732098572740,0.39423287,93328.0,93327.0,0.0016118]
[1732098575574,0.3681135,93328.0,93327.0,0.0016118]
[1732098575847,0.39422134,93328.0,93327.0,0.0016118]
[1732098577039,0.42615466,93328.0,93327.0,0.0016118]
[1732098578302,0.42541609,93328.0,93327.0,0.0016118]
[1732098579134,0.41823212,93328.0,93327.0,0.0016118]
[1732098579778,0.39213045,93328.0,93327.0,0.0016118]
[1732098579908,0.41824107,93328.0,93327.0,0.0016118]
[1732098580722,0.4048663,93328.0,93327.0,0.0016118]
[1732098582741,0.37875568,93328.0,93327.0,0.0016118]
[1732098583147,0.42485576,93328.0,93327.0,0.0016118]
[1732098583565,0.34755576,93328.0,93327.0,0.0016118]
[1732098586010,0.29775576,93328.0,93327.0,0.0016118]
[1732098586645,0.20634058,93328.0,93327.0,0.0016118]
[1732098586898,0.27172848,93328.0,93327.0,0.0016118]
[1732098587116,0.29788363,93328.0,93327.0,0.0016118]
[1732098589714,0.29788363,93328.0,93327.0,0.0016118]
[1732098590354,0.29789773,93328.0,93327.0,0.0016118]
[1732098590809,0.29790157,93328.0,93327.0,0.0016118]
[1732098593300,0.29790157,93328.0,93326.0,0.0017114]
[1732098593301,0.10715,93327.0,93326.0,0.00079538]
[1732098593511,0.30582611,93327.0,93326.0,0.00079538]
[1732098593938,0.24042027,93327.0,93326.0,0.00079538]
[1732098594147,0.30584079,93327.0,93326.0,0.00079538]
[1732098595887,0.30584079,93327.0,93317.0,0.085728]
[1732098595888,0.107155,93322.0,93317.0,0.085728]
[1732098596124,0.03203626,93319.0,93317.0,0.085728]
[1732098596338,0.03203626,93320.0,93318.0,0.085728]
[1732098596561,0.12365977,93319.0,93317.0,0.085728]
[1732098596790,0.09162351,93318.0,93317.0,0.085728]
[1732098597227,0.06544536,93318.0,93315.0,0.08573]
[1732098597456,0.03340307,93317.0,93312.0,0.085733]
[1732098597673,0.107163,93315.0,93308.0,0.085737]
[1732098597886,0.09162349,93314.0,93311.0,0.085734]
[1732098598113,0.10711512,93316.0,93308.0,0.085737]
[1732098598114,0.23083178,93313.0,93308.0,0.085737]
[1732098598325,0.23083178,93313.0,93306.0,0.165039]
[1732098598326,0.09162349,93312.0,93309.0,0.085736]
[1732098598507,0.08627284,93311.0,93310.0,0.085735]
[1732098599915,0.08627284,93311.0,93306.0,0.165039]
[1732098600174,0.08627284,93310.0,93308.0,0.085736]
[1732098600422,0.06544536,93309.0,93308.0,0.085736]
[1732098600680,0.02082748,93309.0,93308.0,0.085736]
[1732098600945,0.08633579,93309.0,93308.0,0.085736]
[1732098601169,0.07430968,93309.0,93308.0,0.085736]
[1732098601389,0.08633582,93309.0,93308.0,0.085736]
[1732098601660,0.11845979,93309.0,93308.0,0.085736]
[1732098601923,0.06552413,93309.0,93308.0,0.085736]
[1732098602176,0.08638287,93309.0,93308.0,0.085736]
[1732098605852,0.11847326,93309.0,93308.0,0.085736]
[1732098606605,0.08638287,93309.0,93308.0,0.085736]
[1732098608461,0.11847326,93309.0,93308.0,0.085736]
[1732098609412,0.08638287,93309.0,93308.0,0.085736]
[1732098610402,0.06551327,93309.0,93308.0,0.085736]
[1732098610630,0.08636776,93309.0,93308.0,0.085736]
[1732098610890,0.06551327,93309.0,93308.0,0.085736]
[1732098611126,0.08636788,93309.0,93308.0,0.085736]
[1732098611941,0.08636785,93309.0,93308.0,0.0865921]
[1732098613095,0.08636804,93309.0,93308.0,0.0865921]
[1732098614506,0.08636804,93309.0,93308.0,0.23042619]
[1732098615723,0.08636804,93309.0,93308.0,0.0865921]
[1732098616206,0.08636804,93309.0,93308.0,0.23056641]
[1732098616428,0.08636804,93309.0,93308.0,0.0865921]
[1732098617626,0.10711512,93313.0,93311.0,0.085734]
[1732098617903,0.10711512,93313.0,93312.0,0.22981569]
[1732098618150,0.19883662,93313.0,93312.0,0.14526465]
[1732098618400,0.19883662,93313.0,93312.0,0.23099765]
[1732098618893,0.19883662,93313.0,93312.0,0.00118196]
[1732098619858,0.19883662,93313.0,93312.0,0.00373097]
[1732098620121,0.19883662,93313.0,93311.0,0.085734]
[1732098620363,0.13920025,93313.0,93312.0,0.00491899]
[1732098620602,0.19884057,93313.0,93312.0,0.00491899]
[1732098621074,0.10711512,93313.0,93312.0,0.00491899]
[1732098621338,0.16060157,93313.0,93312.0,0.00491899]
[1732098621590,0.32606252,93313.0,93312.0,0.00491899]
[1732098621863,0.35227018,93313.0,93312.0,0.00491899]
[1732098622553,0.24510418,93313.0,93312.0,0.00491899]
[1732098623424,0.21889652,93313.0,93312.0,0.00491899]
[1732098623655,0.35227182,93313.0,93312.0,0.00491899]
[1732098624363,0.35227182,93313.0,93308.0,0.0008561]
[1732098624364,0.17617,93309.0,93308.0,0.0008561]
[1732098624573,0.46661084,93309.0,93308.0,0.0008561]
[1732098624791,0.42971273,93309.0,93308.0,0.0008561]
[1732098625226,0.45592377,93309.0,93308.0,0.0008561]
[1732098625449,0.78256844,93309.0,93308.0,0.0008561]
[1732098625666,0.63818616,93309.0,93308.0,0.0008561]
[1732098625877,0.69833427,93309.0,93308.0,0.0008561]
[1732098626086,0.31564439,93299.0,93298.0,0.001711]
[1732098626299,0.52449816,93299.0,93298.0,0.001711]
[1732098627178,0.63449816,93299.0,93298.0,0.001711]
[1732098628113,0.63649816,93299.0,93298.0,0.001711]
[1732098628366,0.79277997,93299.0,93298.0,0.001711]
[1732098628623,0.77556747,93299.0,93298.0,0.001711]
[1732098628888,0.67947722,93299.0,93298.0,0.001711]
[1732098629141,0.77556747,93299.0,93298.0,0.001711]
[1732098629477,1.07503368,93299.0,93298.0,0.001711]
[1732098629658,1.40940216,93299.0,93298.0,0.001711]
[1732098629913,1.7636728,93299.0,93298.0,0.001711]
[1732098630165,1.71470639,93299.0,93298.0,0.001711]
[1732098630400,1.71470639,93299.0,93251.0,0.0004]
[1732098630401,0.227236,93252.0,93251.0,0.0004]
[1732098630624,0.38864658,93252.0,93251.0,0.0004]
[1732098630841,0.42609345,93252.0,93251.0,0.0004]
[1732098631280,0.42073843,93252.0,93251.0,0.0004]
[1732098631502,0.50835576,93252.0,93251.0,0.0004]
[1732098631931,0.39961395,93252.0,93251.0,0.0004]
[1732098632164,0.42571972,93252.0,93251.0,0.0004]
[1732098632389,0.42571383,93252.0,93251.0,0.0004]
[1732098632600,0.45447433,93252.0,93251.0,0.0004]
[1732098632812,0.44383583,93252.0,93251.0,0.0004]
[1732098633019,0.48719454,93252.0,93251.0,0.0004]
[1732098633483,0.49783304,93252.0,93251.0,0.0004]
[1732098633690,0.47719454,93252.0,93251.0,0.0004]
[1732098633906,0.43383583,93252.0,93251.0,0.0004]
[1732098634357,0.21659983,93252.0,93251.0,0.0004]
[1732098634599,0.21659983,93252.0,93251.0,0.107637]
[1732098634756,0.13595383,93252.0,93251.0,0.107637]
[1732098634978,0.10412889,93252.0,93251.0,0.107637]
[1732098635184,0.19847666,93252.0,93251.0,0.0004]
[1732098635413,0.31844103,93252.0,93251.0,0.0004]
[1732098635623,0.41070342,93252.0,93251.0,0.0004]
[1732098635831,0.59870091,93252.0,93251.0,0.0004]
[1732098636032,0.66377621,93252.0,93251.0,0.0003]
[1732098636244,0.68980632,93252.0,93251.0,0.0003]
[1732098636447,0.69180632,93252.0,93251.0,0.0003]
[1732098636657,0.65386166,93252.0,93251.0,0.0003]
[1732098636876,0.73538725,93252.0,93251.0,0.0003]
[1732098637153,0.73538725,93252.0,93251.0,0.001156]
[1732098637363,0.107257,93234.0,93233.0,0.0007559]
[1732098637571,0.30547753,93234.0,93233.0,0.0007559]
[1732098639169,0.21437212,93234.0,93233.0,0.0007559]
[1732098639376,0.28727331,93234.0,93233.0,0.0007559]
[1732098639583,0.25816448,93234.0,93219.0,0.107273]
[1732098639790,0.02,93236.0,93217.0,0.107275]
[1732098639791,0.107266,93226.0,93220.0,0.107272]
[1732098639996,0.19806834,93225.0,93219.0,0.107273]
[1732098640219,0.30533534,93225.0,93219.0,0.107273]
[1732098640433,0.30533534,93225.0,93217.0,0.107275]
[1732098640434,0.19806834,93225.0,93217.0,0.107275]
[1732098640570,0.19806834,93225.0,93220.0,0.107272]
[1732098640966,0.19806834,93225.0,93217.0,0.107275]
[1732098641175,0.30533534,93225.0,93216.0,0.107276]
[1732098641390,0.31590937,93225.0,93216.0,0.107276]
[1732098641820,0.30533534,93225.0,93216.0,0.107276]
[1732098642049,0.31590937,93225.0,93218.0,0.107275]
[1732098642465,0.36476683,93225.0,93219.0,0.107274]
[1732098642673,0.16654661,93225.0,93220.0,0.107272]
[1732098642893,0.25740468,93225.0,93220.0,0.107272]
[1732098643105,0.35931516,93225.0,93218.0,0.107275]
[1732098643331,0.36467169,93225.0,93216.0,0.107276]
[1732098643515,0.36467169,93225.0,93211.0,0.0004]
[1732098643773,0.36467169,93225.0,93211.0,0.214964]
[1732098643998,0.36467169,93225.0,93211.0,0.107682]
[1732098644241,0.36467169,93225.0,93212.0,0.107282]
[1732098644662,0.36467169,93225.0,93213.0,0.10728]
[1732098644892,0.36467169,93225.0,93211.0,0.214964]
[1732098645107,0.36467169,93225.0,93211.0,0.107682]
[1732098645323,0.36467169,93225.0,93212.0,0.107281]
[1732098645954,0.36467169,93225.0,93213.0,0.10728]
[1732098646171,0.36467158,93225.0,93213.0,0.10728]
[1732098646382,0.36468065,93225.0,93212.0,0.214562]
[1732098646816,0.36468065,93225.0,93211.0,0.0004]
[1732098647438,0.214541,93223.0,93214.0,0.107279]
[1732098647642,0.107273,93220.0,93214.0,0.107279]
[1732098647850,0.25741365,93219.0,93214.0,0.107279]
[1732098648074,0.09086704,93218.0,93214.0,0.107279]
[1732098648305,0.25745934,93217.0,93214.0,0.107279]
[1732098648514,0.09086704,93216.0,93214.0,0.107279]
[1732098648723,0.19798216,93215.0,93214.0,0.107279]
[1732098649356,0.257485,93215.0,93214.0,0.107279]
[1732098649592,0.257485,93215.0,93212.0,0.107281]
[1732098649805,0.13774383,93214.0,93211.0,0.107682]
[1732098650006,0.12446313,93213.0,93212.0,0.107282]
[1732098650220,0.15042247,93213.0,93212.0,0.107282]
[1732098650434,0.15042247,93213.0,93211.0,0.0004]
[1732098650435,0.25753759,93213.0,93211.0,0.0004]
[1732098650661,0.25753759,93212.0,93211.0,0.0004]
[1732098650878,0.36481959,93212.0,93211.0,0.0004]
[1732098651103,0.107286,93208.0,93207.0,0.02216078]
[1732098651323,0.36482359,93208.0,93207.0,0.02216078]
[1732098651732,0.36482359,93208.0,93204.0,0.0008561]
[1732098651733,0.28135965,93208.0,93204.0,0.0008561]
[1732098651935,0.25753759,93207.0,93204.0,0.0008561]
[1732098652187,0.10729,93205.0,93204.0,0.0008561]
[1732098652393,0.38866548,93205.0,93204.0,0.0008561]
[1732098653263,0.28137548,93205.0,93204.0,0.0008561]
[1732098653480,0.17426036,93205.0,93204.0,0.1081471]
[1732098653694,0.17439015,93205.0,93204.0,0.1081471]
[1732098654115,0.15055226,93205.0,93204.0,0.1081471]
[1732098654740,0.15055226,93205.0,93202.0,0.107292]
[1732098654957,0.324526,93229.0,93202.0,0.04346276]
[1732098655183,0.107269,93223.0,93218.0,0.214548]
[1732098655411,0.28194575,93222.0,93218.0,0.18776433]
[1732098655620,0.28194575,93222.0,93207.0,0.107287]
[1732098655621,0.17483063,93221.0,93219.0,0.107274]
[1732098655825,0.28194575,93220.0,93219.0,0.107274]
[1732098656719,0.216792,93220.0,93219.0,0.107274]
[1732098656929,0.23674993,93220.0,93219.0,0.107274]
[1732098657135,0.28207421,93220.0,93219.0,0.107274]
[1732098657370,0.28207421,93220.0,93215.0,0.107278]
[1732098657580,0.10711512,93220.0,93219.0,0.107274]
[1732098657786,0.28246577,93220.0,93219.0,0.107274]
[1732098657995,0.19857158,93220.0,93219.0,0.107274]
[1732098658411,0.28253178,93220.0,93219.0,0.107274]
[1732098658867,0.22256021,93220.0,93219.0,0.107274]
[1732098660432,0.22256021,93220.0,93217.0,0.107276]
[1732098660433,0.2566134,93220.0,93217.0,0.107275]
[1732098660640,0.28279196,93220.0,93219.0,0.107274]
[1732098660844,0.25665009,93220.0,93219.0,0.107274]
[1732098661052,0.22276539,93220.0,93219.0,0.107274]
[1732098661272,0.22276539,93220.0,93219.0,0.1081304]
[1732098661448,0.28285231,93220.0,93219.0,0.0008564]
[1732098661894,0.39012531,93220.0,93219.0,0.0008564]
[1732098662772,0.36397688,93220.0,93219.0,0.0008564]
[1732098663193,0.32469094,93220.0,93219.0,0.0008564]
[1732098663408,0.41100128,93220.0,93219.0,0.0008564]
[1732098663615,0.41635823,93220.0,93219.0,0.0008564]
[1732098665544,0.41635823,93220.0,93191.0,0.0004]
[1732098665545,0.10729,93206.0,93191.0,0.0004]
[1732098665761,0.107294,93202.0,93197.0,0.096568]
[1732098665981,0.28289462,93201.0,93198.0,0.07728168]
[1732098666194,0.13357652,93200.0,93199.0,0.096567]
[1732098666425,0.28289462,93200.0,93191.0,0.0004]
[1732098666635,0.1757795,93199.0,93196.0,0.096569]
[1732098666839,0.15175421,93198.0,93196.0,0.09657]
[1732098667043,0.10711512,93200.0,93197.0,0.096569]
[1732098667254,0.10711512,93200.0,93196.0,0.09657]
[1732098667255,0.15190143,93199.0,93196.0,0.09657]
[1732098667491,0.214577,93207.0,93196.0,0.09657]
[1732098667492,0.15190143,93198.0,93196.0,0.09657]
[1732098667766,0.15190143,93198.0,93197.0,0.27542836]
[1732098667767,0.02621232,93198.0,93197.0,0.27542836]
[1732098667960,0.10711512,93219.0,93218.0,0.096547]
[1732098668171,0.28307633,93219.0,93218.0,0.096547]
[1732098668381,0.28307633,93219.0,93210.0,0.096555]
[1732098668587,0.09174125,93218.0,93214.0,0.096551]
[1732098668796,0.09174125,93218.0,93210.0,0.096555]
[1732098668797,0.09174125,93217.0,93215.0,0.09655]
[1732098669042,0.09174125,93216.0,93215.0,0.09655]
[1732098669252,0.19885637,93216.0,93214.0,0.096551]
[1732098669453,0.10711512,93215.0,93205.0,0.09656]
[1732098669660,0.09174125,93214.0,93206.0,0.096559]
[1732098669884,0.1726446,93213.0,93208.0,0.096558]
[1732098670104,0.09174125,93212.0,93208.0,0.096558]
[1732098670311,0.09174125,93212.0,93199.0,0.096567]
[1732098670312,0.0017128,93225.0,93219.0,0.096546]
[1732098670763,0.11791973,93220.0,93219.0,0.096546]
[1732098671419,0.09172912,93220.0,93219.0,0.096546]
[1732098671674,0.09172912,93220.0,93217.0,0.096548]
[1732098671897,0.09172912,93219.0,93217.0,0.096548]
[1732098672109,0.02620831,93218.0,93217.0,0.096548]
[1732098672324,0.02620831,93218.0,93206.0,0.096559]
[1732098672325,0.0917322,93218.0,93215.0,0.09655]
[1732098672537,0.10727,93223.0,93199.0,0.096567]
[1732098672538,0.107288,93207.0,93199.0,0.096567]
[1732098672759,0.214555,93216.0,93197.0,0.0453]
[1732098672760,0.19885264,93206.0,93205.0,0.096561]
[1732098673225,0.19885421,93206.0,93205.0,0.096561]
[1732098673437,0.09173909,93206.0,93205.0,0.096561]
[1732098673659,0.09173869,93206.0,93205.0,0.096561]
[1732098674495,0.11882357,93206.0,93205.0,0.096561]
[1732098674706,0.08673869,93206.0,93205.0,0.179761]
[1732098675529,0.08673955,93206.0,93205.0,0.22990667]
[1732098675783,0.03208488,93218.0,93214.0,0.1296]
[1732098676001,0.0017128,93225.0,93222.0,0.0832]
[1732098676230,0.0017128,93225.0,93224.0,0.22010036]
[1732098676440,0.01069278,93237.0,93229.0,0.01]
[1732098676654,0.01069278,93238.0,93237.0,0.106528]
[1732098676885,0.01069278,93238.0,93237.0,0.183028]
[1732098677092,0.01069278,93245.0,93244.0,0.09652]
[1732098677297,0.01069278,93253.0,93238.0,0.01]
[1732098677504,0.21433712,93264.0,93238.0,0.01]
[1732098677721,0.10711512,93264.0,93259.0,0.096504]
[1732098677971,0.10711512,93264.0,93258.0,0.096506]
[1732098677972,0.107224,93262.0,93258.0,0.096506]
[1732098678200,0.10711512,93261.0,93259.0,0.096505]
[1732098678402,0.11778269,93261.0,93259.0,0.096505]
[1732098678610,0.11778269,93261.0,93259.0,0.096504]
[1732098679056,0.11778269,93261.0,93260.0,0.096504]
[1732098679739,0.10711512,93261.0,93260.0,0.096504]
[1732098681188,0.10711512,93261.0,93259.0,0.096505]
[1732098681457,0.10711512,93261.0,93260.0,0.096504]
[1732098682944,0.10711512,93261.0,93251.0,0.096512]
[1732098683267,0.10711512,93261.0,93259.0,0.096505]
[1732098683533,0.10711512,93261.0,93243.0,0.17015936]
[1732098683534,0.10711512,93261.0,93260.0,0.096504]
[1732098684466,0.10711512,93261.0,93260.0,0.176404]
[1732098685212,0.10711512,93261.0,93260.0,0.096504]
[1732098685976,0.10882812,93261.0,93260.0,0.096504]
[1732098686459,0.001713,93261.0,93260.0,0.096504]
[1732098686970,0.001713,93261.0,93260.0,0.142404]
[1732098687469,0.001713,93261.0,93260.0,0.22034841]
[1732098688536,0.001713,93261.0,93260.0,0.22224841]
[1732098688810,0.00796407,93296.0,93285.0,0.0762]
[1732098689088,0.21430212,93295.0,93289.0,0.096474]
[1732098689364,0.10711512,93295.0,93294.0,0.096469]
[1732098689606,0.0079584,93304.0,93303.0,0.096458]
[1732098689859,0.0079584,93304.0,93297.0,0.096465]
[1732098689860,0.10711512,93304.0,93300.0,0.096462]
[1732098690099,0.23423,93312.0,93300.0,0.096462]
[1732098690100,0.10711512,93303.0,93302.0,0.09646]
[1732098690315,0.10711512,93303.0,93297.0,0.096465]
[1732098690526,0.10711512,93303.0,93300.0,0.096462]
[1732098691227,0.10711512,93303.0,93285.0,0.0494]
[1732098691454,0.10711512,93303.0,93291.0,0.096472]
[1732098691455,0.01987267,93302.0,93291.0,0.096472]
[1732098691673,0.02,93308.0,93291.0,0.096472]
[1732098691674,0.107185,93297.0,93292.0,0.09647]
[1732098691925,0.10711512,93296.0,93290.0,0.096472]
[1732098692140,0.107187,93295.0,93290.0,0.096472]
[1732098692352,0.10711512,93294.0,93290.0,0.096472]
[1732098692781,0.214352,93305.0,93290.0,0.096472]
[1732098693003,0.13492574,93304.0,93301.0,0.09646]
[1732098693227,0.01986473,93303.0,93301.0,0.09646]
[1732098693440,0.12697985,93302.0,93300.0,0.096462]
[1732098693874,0.01985844,93301.0,93290.0,0.096472]
[1732098694089,0.01985844,93301.0,93281.0,0.20035936]
[1732098694090,0.10711512,93300.0,93298.0,0.096464]
[1732098694307,0.01985844,93299.0,93283.0,0.1072]
[1732098694549,0.12697356,93298.0,93296.0,0.096466]
[1732098694791,0.01985844,93297.0,93296.0,0.096466]
[1732098696293,0.02779991,93297.0,93296.0,0.096466]
[1732098696934,0.02779975,93297.0,93296.0,0.096466]
[1732098697177,0.01985828,93297.0,93296.0,0.096466]
[1732098697404,0.02780348,93297.0,93296.0,0.096466]
[1732098698056,0.02951628,93297.0,93296.0,0.096466]
[1732098698282,0.02157108,93297.0,93296.0,0.096466]
[1732098698521,0.02951786,93297.0,93296.0,0.096466]
[1732098699438,0.06131057,93297.0,93296.0,0.096466]
[1732098700315,0.06133939,93297.0,93296.0,0.096466]
[1732098700526,0.06133939,93297.0,93295.0,0.096468]
[1732098700741,0.05962659,93296.0,93295.0,0.096467]
[1732098701158,0.07300719,93296.0,93295.0,0.096467]
[1732098701372,0.08573274,93296.0,93295.0,0.096467]
[1732098703329,0.09108498,93296.0,93295.0,0.096467]
[1732098703814,0.0017128,93297.0,93296.0,0.096467]
[1732098704048,0.08532913,93297.0,93296.0,0.096467]
[1732098704277,0.09291312,93297.0,93296.0,0.096467]
[1732098704511,0.09295725,93297.0,93296.0,0.096467]
[1732098705471,0.09295725,93297.0,93293.0,0.107188]
[1732098705472,0.10357519,93297.0,93293.0,0.214376]
[1732098705700,0.10186239,93296.0,93293.0,0.107188]
[1732098705932,0.01061794,93296.0,93295.0,0.096468]
[1732098706194,0.09133848,93296.0,93295.0,0.096468]
[1732098707646,0.09137974,93296.0,93295.0,0.096468]
[1732098708818,0.09137974,93296.0,93295.0,0.096082]
[1732098709285,0.07264657,93296.0,93295.0,0.18012574]
[1732098709498,0.07264657,93296.0,93295.0,0.177982]
[1732098709926,0.02794099,93296.0,93295.0,0.177982]
[1732098710160,0.02794099,93296.0,93295.0,0.18012547]
[1732098710439,0.07266435,93296.0,93295.0,0.18212547]
[1732098710657,0.02075671,93296.0,93295.0,0.179982]
[1732098710871,0.0726675,93296.0,93295.0,0.18212546]
[1732098711090,0.0726675,93296.0,93295.0,0.179982]
[1732098711307,0.0407224,93296.0,93295.0,0.23579266]
[1732098711540,0.0296559,93296.0,93295.0,0.2316491]
[1732098711764,0.0296559,93296.0,93295.0,0.2336491]
[1732098711972,0.0296559,93296.0,93295.0,0.44876422]
[1732098712191,0.00969021,93296.0,93295.0,0.45076422]
[1732098713036,0.00969021,93296.0,93295.0,0.44876422]
[1732098713253,0.0017116,93296.0,93295.0,0.45076422]
[1732098713460,0.0017116,93296.0,93295.0,0.49696422]
[1732098714574,0.00970043,93296.0,93295.0,0.49696422]
[1732098714784,0.00970043,93296.0,93295.0,0.49736269]
[1732098714994,0.02967257,93296.0,93295.0,0.49736269]
[1732098715619,0.02967257,93296.0,93295.0,0.49536269]
[1732098715839,0.02967257,93296.0,93295.0,0.49736269]
[1732098716046,5.7e-07,93296.0,93295.0,0.62092205]
[1732098716259,0.0017128,93297.0,93296.0,0.345167]
[1732098716467,8e-07,93297.0,93296.0,0.45228212]
[1732098717321,8e-07,93297.0,93296.0,0.47528212]
[1732098720707,8e-07,93297.0,93296.0,0.47328212]
[1732098720936,8e-07,93297.0,93296.0,0.47528212]
[1732098721637,0.0017138,93314.0,93313.0,0.37120836]
[1732098721638,8e-07,93314.0,93313.0,0.37120836]
[1732098721864,0.0017124,93315.0,93314.0,0.218448]
[1732098721865,2e-07,93315.0,93314.0,0.218448]
[1732098722104,2e-07,93315.0,93314.0,0.40860572]
[1732098722323,2e-07,93315.0,93314.0,0.40646312]
[1732098723048,2e-07,93315.0,93314.0,0.26819219]
[1732098723267,2e-07,93315.0,93314.0,0.36464019]
[1732098724153,0.0017138,93319.0,93314.0,0.36464019]
[1732098724154,1e-06,93319.0,93314.0,0.36464019]
[1732098724380,0.0017122,93329.0,93314.0,0.36464019]
[1732098724381,0.0017122,93329.0,93327.0,0.096435]
[1732098724609,0.0017122,93329.0,93327.0,0.25119251]
[1732098724824,0.0017122,93329.0,93327.0,0.24905012]
[1732098725959,0.0017122,93329.0,93327.0,0.33165012]
[1732098726174,0.0017122,93329.0,93327.0,0.43165012]
[1732098727087,0.0017122,93329.0,93327.0,0.47587416]
[1732098727521,4e-07,93329.0,93328.0,0.096434]
[1732098727747,4e-07,93329.0,93328.0,0.30569133]